bitfinex-derivatives/quotes_SOLF0:USTF0_20241002
["timestamp","ask_amount","ask_price","bid_price","bid_amount"]
[1727887355625,3.4101,146.62,146.6,3.4104]
[1727887355840,5.52,146.65,146.6,3.4104]
[1727887356047,3.4099,146.63,146.6,3.4104]
[1727887356329,5.52,146.65,146.6,3.4104]
[1727887356535,3.4099,146.63,146.6,3.4104]
[1727887356732,5.52,146.66,146.57,22.02502]
[1727887356930,117.31122357,146.68,146.59,16.38]
[1727887357134,3.4092,146.66,146.61,16.38]
[1727887357526,100.93122357,146.68,146.61,16.38]
[1727887357731,100.93122357,146.68,146.61,21.9]
[1727887357938,3.4096,146.64,146.61,25.31]
[1727887358132,104.38371009,146.68,146.61,25.31]
[1727887358642,3.4096,146.64,146.61,25.31]
[1727887359136,3.4096,146.64,146.62,3.4099]
[1727887359326,3.4092,146.66,146.61,21.9]
[1727887360038,16.38,146.7,146.61,21.9]
[1727887360230,5.52,146.7,146.63,16.38]
[1727887361236,21.9,146.7,146.61,25.38031491]
[1727887361436,16.38,146.7,146.61,25.38031491]
[1727887361641,16.38,146.7,146.62,3.4098]
[1727887362240,3.4094,146.65,146.62,3.4098]
[1727887362639,3.41,146.62,146.6,5.52]
[1727887363237,3.41,146.62,146.6,8.9304]
[1727887363432,16.38,146.66,146.6,5.52]
[1727887363637,3.4095,146.65,146.6,5.52]
[1727887363838,5.52,146.67,146.57,0.12502]
[1727887363839,16.38,146.63,146.57,0.12502]
[1727887364042,21.9,146.63,146.57,0.12502]
[1727887364344,3.39835071,146.62,146.57,0.12502]
[1727887365346,21.9,146.63,146.57,0.12502]
[1727887365940,3.4108,146.59,146.57,0.12502]
[1727887367141,3.4109,146.58,146.57,0.12502]
[1727887367744,3.4103,146.61,146.57,0.12502]
[1727887367940,5.52,146.65,146.57,0.12502]
[1727887368140,21.9,146.65,146.57,0.12502]
[1727887368647,3.4101,146.62,146.59,3.4106]
[1727887370345,3.4096,146.64,146.61,3.4102]
[1727887370939,1.3605,146.67,146.59,16.38]
[1727887371146,1.333,146.72,146.63,16.38]
[1727887371452,1.333,146.72,146.63,25.33338334]
[1727887371749,3.53352,146.69,146.66,3.409]
[1727887372744,0.12502,146.69,146.63,25.33338334]
[1727887372950,0.12502,146.69,146.67,3.4087]
[1727887373245,0.12502,146.69,146.65,16.38]
[1727887373443,0.12502,146.69,146.68,3.4086]
[1727887373641,0.12502,146.69,146.68,8.9286]
[1727887374250,0.12502,146.69,146.68,10.2342]
[1727887375044,0.12502,146.75,146.68,6.8256]
[1727887375245,3.4073,146.74,146.71,3.4078]
[1727887375646,0.12502,146.75,146.69,16.38]
[1727887375849,0.12502,146.75,146.71,16.38]
[1727887376146,0.12502,146.75,146.72,5.52]
[1727887376350,0.12502,146.75,146.74,3.4072]
[1727887379556,0.12502,146.75,146.73,19.7873]
[1727887380948,0.12502,146.75,146.71,3.4102527]
[1727887381150,0.12502,146.75,146.69,1.3904]
[1727887381151,3.4075,146.73,146.7,3.4079]
[1727887381452,0.12502,146.75,146.69,23.2904]
[1727887381653,3.4074,146.74,146.7,3.408]
[1727887382056,0.12502,146.75,146.7,3.408]
[1727887382846,3.4074,146.73,146.7,3.408]
[1727887383258,3.4074,146.73,146.7,8.928]
[1727887385058,3.4073,146.74,146.71,3.4078]
[1727887385255,0.12502,146.75,146.71,3.4078]
[1727887385759,3.4072,146.74,146.71,3.4078]
[1727887385960,0.12502,146.75,146.7,5.52]
[1727887387754,0.12502,146.75,146.71,19.78239912]
[1727887388354,0.12502,146.75,146.73,16.38]
[1727887388550,0.12502,146.75,146.74,5.52]
[1727887389758,0.12502,146.75,146.74,8.9272]
[1727887392758,0.12502,146.75,146.72,16.38]
[1727887392960,3.4073,146.74,146.7,17.6779]
[1727887393262,0.12502,146.75,146.7,16.38]
[1727887393463,0.12502,146.75,146.7,21.9]
[1727887393764,0.12502,146.75,146.68,8.9285]
[1727887393765,3.4079,146.71,146.68,8.9285]
[1727887393953,0.12502,146.75,146.66,21.9]
[1727887393954,19.83994333,146.75,146.66,21.9]
[1727887394158,3.4086,146.68,146.66,5.52]
[1727887394462,21.9,146.73,146.64,8.1589]
[1727887394957,21.9,146.73,146.64,5.52]
[1727887394958,16.38,146.71,146.64,5.52]
[1727887395460,3.4091,146.66,146.64,5.52]
[1727887395861,16.38,146.71,146.64,5.52]
[1727887396856,3.4092,146.66,146.64,5.52]
[1727887397963,3.4085,146.69,146.66,3.409]
[1727887398665,3.4086,146.68,146.65,3.4092]
[1727887399465,3.4088,146.67,146.65,3.4092]
[1727887399660,3.4088,146.67,146.64,5.52]
[1727887399661,3.4088,146.67,146.64,8.9294]
[1727887399861,16.38,146.71,146.64,8.9294]
[1727887400064,3.4091,146.66,146.64,8.9294]
[1727887400265,3.4091,146.66,146.64,5.52]
[1727887401164,3.4091,146.66,146.64,8.9295]
[1727887401868,3.4089,146.67,146.64,8.9295]
[1727887402470,3.4089,146.67,146.64,5.52]
[1727887402764,3.4087,146.68,146.65,3.4091]
[1727887402966,16.38,146.71,146.65,3.4091]
[1727887403465,16.38,146.71,146.64,5.52]
[1727887403670,3.4089,146.67,146.64,8.9294]
[1727887404060,3.409,146.66,146.64,8.9294]
[1727887404671,3.4086,146.68,146.66,3.409]
[1727887404968,16.38,146.71,146.64,5.52]
[1727887405371,3.409,146.66,146.64,8.9295]
[1727887405568,3.409,146.66,146.64,5.52]
[1727887406773,3.409,146.66,146.64,8.9295]
[1727887408274,16.38,146.69,146.63,0.12502]
[1727887408563,21.9,146.69,146.63,0.12502]
[1727887408769,3.4094,146.65,146.63,3.53472]
[1727887408970,21.9,146.69,146.63,3.53472]
[1727887409367,3.4095,146.64,146.63,0.12502]
[1727887415670,3.4091,146.66,146.64,3.4095]
[1727887415864,3.4091,146.66,146.64,13.8795]
[1727887416475,3.409,146.66,146.64,13.8795]
[1727887416775,10.47,146.67,146.63,0.12502]
[1727887417366,3.4095,146.64,146.63,0.12502]
[1727887418376,16.36,146.69,146.63,0.12502]
[1727887419276,3.4091,146.66,146.64,3.4094]
[1727887419575,3.4091,146.66,146.63,0.12502]
[1727887419771,16.36,146.69,146.63,0.12502]
[1727887420380,3.4095,146.64,146.63,0.12502]
[1727887425877,5.52,146.67,146.63,0.12502]
[1727887426675,3.4095,146.64,146.63,0.12502]
[1727887426974,5.52,146.67,146.63,0.12502]
[1727887427179,3.4095,146.65,146.63,0.12502]
[1727887427777,16.36,146.71,146.63,0.12502]
[1727887427983,6.8094,146.7,146.63,0.12502]
[1727887428987,6.8094,146.7,146.64,3.4093]
[1727887429181,6.8094,146.7,146.63,0.12502]
[1727887429479,3.4095,146.64,146.63,0.12502]
[1727887435287,16.36,146.65,146.57,0.12502]
[1727887435584,16.36,146.62,146.57,0.12502]
[1727887435785,3.4109,146.58,146.57,0.12502]
[1727887437579,21.88,146.62,146.57,0.12502]
[1727887438389,3.4109,146.58,146.57,0.12502]
[1727887443691,21.88,146.62,146.57,0.12502]
[1727887443888,3.4107,146.59,146.57,0.12502]
[1727887444277,3.4109,146.58,146.57,0.12502]
[1727887456098,5.52,146.62,146.57,0.12502]
[1727887456400,10.48,146.61,146.57,3.53602]
[1727887456607,10.48,146.61,146.57,0.12502]
[1727887456905,5.52,146.62,146.57,0.12502]
[1727887456906,10.48,146.62,146.57,0.12502]
[1727887457700,10.48,146.6,146.57,0.12502]
[1727887458605,3.4109,146.58,146.57,0.12502]
[1727887464010,5.52,146.63,146.57,0.12502]
[1727887464211,10.48,146.6,146.57,0.12502]
[1727887465202,3.4109,146.58,146.57,0.12502]
[1727887466804,13.8909,146.58,146.57,0.12502]
[1727887468311,3.4109,146.58,146.57,0.12502]
[1727887468510,8.1059,146.64,146.57,0.12502]
[1727887468714,3.4108,146.59,146.57,0.12502]
[1727887469105,10.48,146.61,146.57,0.12502]
[1727887469314,3.4109,146.58,146.57,0.12502]
[1727887469613,10.48,146.61,146.57,0.12502]
[1727887469814,3.4108,146.59,146.57,0.12502]
[1727887470010,10.48,146.6,146.57,0.12502]
[1727887471210,3.4109,146.58,146.57,0.12502]
[1727887473413,3.4108,146.59,146.57,3.53612]
[1727887473608,95.41846464,146.66,146.57,10.60502]
[1727887473609,5.52,146.65,146.57,10.60502]
[1727887473914,5.52,146.65,146.61,3.4101]
[1727887473915,3.4096,146.64,146.61,3.4101]
[1727887474109,3.4096,146.64,146.6,10.48]
[1727887474306,10.48,146.61,146.58,1.273]
[1727887474515,10.48,146.61,146.57,0.12502]
[1727887474716,10.48,146.6,146.57,0.12502]
[1727887475019,13.8909,146.58,146.57,0.12502]
[1727887476423,3.33367451,146.67,146.57,10.60502]
[1727887476615,10.48,146.64,146.59,10.48]
[1727887476818,10.48,146.63,146.57,10.60502]
[1727887477021,10.48,146.61,146.57,0.12502]
[1727887477516,19.87050665,146.63,146.57,0.12502]
[1727887477920,25.39050665,146.63,146.57,0.12502]
[1727887478111,3.4108,146.59,146.57,0.12502]
[1727887478617,25.39050665,146.63,146.57,0.12502]
[1727887479120,3.4109,146.58,146.57,0.12502]
[1727887480221,3.4108,146.59,146.57,0.12502]
[1727887480817,3.4106,146.6,146.57,0.12502]
[1727887481123,5.52,146.63,146.58,3.4108]
[1727887481423,3.4102,146.62,146.57,0.12502]
[1727887481714,5.52,146.63,146.58,3.4107]
[1727887481910,5.52,146.63,146.57,0.12502]
[1727887482116,3.4104,146.61,146.57,0.12502]
[1727887482310,5.52,146.63,146.59,3.4105]
[1727887482517,3.4102,146.61,146.59,3.4105]
[1727887483117,5.52,146.65,146.59,3.4105]
[1727887483521,3.4101,146.62,146.59,3.4105]
[1727887484020,3.4102,146.61,146.59,3.4105]
[1727887489529,5.52,146.65,146.57,0.12502]
[1727887489729,3.4108,146.59,146.57,0.12502]
[1727887490129,16.38,146.64,146.57,0.12502]
[1727887490327,3.4108,146.59,146.57,0.12502]
[1727887490727,16.38,146.64,146.57,0.12502]
[1727887491032,3.4109,146.58,146.57,0.12502]
[1727887495233,16.38,146.6,146.51,0.12502]
[1727887495439,19.123,146.6,146.51,0.12502]
[1727887496439,16.38,146.62,146.53,16.38]
[1727887496735,3.4107,146.59,146.53,21.9]
[1727887497038,5.52,146.62,146.55,16.38]
[1727887497433,0.12502,146.63,146.57,16.38]
[1727887497836,3.4104,146.61,146.58,3.4107]
[1727887498140,0.12502,146.63,146.58,3.4107]
[1727887498335,3.4108,146.59,146.56,3.4112]
[1727887498736,0.12502,146.63,146.56,3.4112]
[1727887498941,3.4102,146.61,146.56,3.4112]
[1727887499142,0.12502,146.63,146.56,3.4112]
[1727887499741,0.12502,146.63,146.55,16.38]
[1727887500243,3.4106,146.6,146.57,3.411]
[1727887500440,0.12502,146.63,146.57,3.411]
[1727887500940,3.4106,146.6,146.57,3.411]
[1727887501537,0.12502,146.63,146.57,3.411]
[1727887501846,0.12502,146.63,146.55,16.38]
[1727887502332,3.4107,146.59,146.55,16.38]
[1727887502944,16.50502,146.63,146.54,2.6329]
[1727887503545,3.4114,146.56,146.54,6.0446]
[1727887503841,16.50502,146.63,146.54,6.0446]
[1727887504041,3.411,146.58,146.55,3.4114]
[1727887505037,3.4112,146.57,146.55,3.4114]
[1727887505539,16.50502,146.63,146.54,1.2947]
[1727887505841,3.4116,146.55,146.54,1.2947]
[1727887506338,3.411,146.58,146.52,1.2965]
[1727887506550,5.52,146.6,146.52,1.2965]
[1727887506745,5.52,146.6,146.52,3.4122]
[1727887506939,3.412,146.54,146.52,3.4122]
[1727887509042,1.2769,146.61,146.53,16.38]
[1727887509243,5.52,146.6,146.53,16.38]
[1727887509751,3.4114,146.56,146.54,3.4117]
[1727887511047,3.412,146.54,146.51,19.91742]
[1727887511445,3.36325037,146.58,146.51,0.12502]
[1727887511741,3.36325037,146.58,146.51,3.53742]
[1727887512142,3.4121,146.53,146.51,0.12502]
[1727887512347,3.36325037,146.58,146.51,0.12502]
[1727887512649,3.4123,146.52,146.51,0.12502]
[1727887515348,3.4123,146.52,146.47,0.12518]
[1727887515349,3.4132,146.48,146.47,0.12518]
[1727887515652,5.52,146.52,146.47,0.12518]
[1727887515842,16.38,146.51,146.47,0.12518]
[1727887516046,16.38,146.49,146.47,0.12518]
[1727887516247,3.4137,146.46,146.45,0.12502]
[1727887516851,3.4136,146.47,146.45,0.12502]
[1727887517367,5.52,146.48,146.45,0.12502]
[1727887517851,16.38,146.51,146.45,0.12502]
[1727887518044,5.52,146.5,146.45,0.12502]
[1727887518242,3.4129,146.5,146.45,0.12502]
[1727887519053,3.4129,146.5,146.47,3.4134]
[1727887520055,3.413,146.49,146.46,3.4135]
[1727887520553,5.52,146.52,146.45,0.12502]
[1727887520745,16.38,146.51,146.45,0.12502]
[1727887522947,3.4134,146.48,146.45,3.53892]
[1727887523950,3.4131,146.49,146.47,3.4134]
[1727887525259,5.52,146.52,146.48,3.4131]
[1727887525856,3.4126,146.51,146.48,3.4131]
[1727887526449,5.52,146.52,146.45,2.78242]
[1727887526849,90.08,146.55,146.46,19.73667058]
[1727887527046,95.6,146.55,146.46,21.07247058]
[1727887527246,16.50502,146.57,146.48,16.38]
[1727887527457,5.52,146.56,146.48,16.38]
[1727887527752,3.4117,146.55,146.5,16.38]
[1727887527957,5.64502,146.57,146.5,16.38]
[1727887528756,22.02502,146.57,146.49,5.52]
[1727887529055,16.38,146.54,146.46,1.3358]
[1727887529355,16.38,146.54,146.46,6.8558]
[1727887529559,3.4128,146.5,146.47,3.4133]
[1727887529947,3.413,146.49,146.47,3.4133]
[1727887530150,5.52,146.53,146.46,6.8558]
[1727887530757,5.52,146.53,146.47,3.4134]
[1727887530758,3.4131,146.49,146.47,3.4134]
[1727887531158,5.52,146.53,146.46,6.8558]
[1727887531551,16.38,146.56,146.46,23.2358]
[1727887531859,5.52,146.56,146.48,16.38]
[1727887532160,21.9,146.56,146.47,16.38]
[1727887532556,3.4123,146.52,146.49,3.4128]
[1727887533062,3.4123,146.52,146.5,3.4127]
[1727887534263,21.9,146.56,146.47,16.38]
[1727887534661,5.52,146.56,146.49,16.38]
[1727887534860,0.12502,146.57,146.54,3.4118]
[1727887535059,0.12502,146.57,146.51,16.38]
[1727887535258,0.12502,146.57,146.51,19.0658]
[1727887535961,0.12502,146.57,146.53,3.412]
[1727887536163,0.12502,146.57,146.51,19.0658]
[1727887536553,0.12502,146.57,146.53,16.38]
[1727887536757,0.12502,146.57,146.52,1.3872]
[1727887537366,3.4115,146.56,146.53,3.4118]
[1727887537960,0.12502,146.57,146.55,3.4114]
[1727887538161,0.12502,146.57,146.53,16.38]
[1727887539663,0.12502,146.63,146.55,16.38]
[1727887540164,16.38,146.62,146.55,5.52]
[1727887540360,16.38,146.6,146.52,1.3872]
[1727887540562,16.38,146.6,146.53,3.4119]
[1727887540871,21.9,146.6,146.53,3.4119]
[1727887541364,3.4115,146.56,146.53,3.4119]
[1727887541762,21.9,146.6,146.52,6.9072]
[1727887542062,21.9,146.62,146.53,16.38]
[1727887542462,21.9,146.62,146.57,3.411]
[1727887542663,21.9,146.62,146.53,16.38]
[1727887542863,3.4107,146.59,146.53,16.38]
[1727887543562,3.4107,146.59,146.56,3.4112]
[1727887543755,3.4107,146.59,146.53,16.38]
[1727887544271,21.9,146.62,146.55,16.38]
[1727887544272,5.52,146.62,146.55,16.38]
[1727887544466,5.52,146.62,146.56,5.52]
[1727887544670,3.4102,146.61,146.58,3.4107]
[1727887545170,3.4102,146.61,146.56,5.52]
[1727887545767,5.52,146.62,146.56,5.52]
[1727887545967,3.4107,146.59,146.56,5.52]
[1727887546163,21.9,146.62,146.55,3.4115]
[1727887546562,3.4104,146.6,146.55,3.4115]
[1727887546768,21.9,146.62,146.55,3.4115]
[1727887547159,21.9,146.62,146.54,5.52]
[1727887547372,3.4105,146.6,146.57,3.411]
[1727887547666,0.12502,146.63,146.57,16.38]
[1727887547870,3.4101,146.62,146.59,3.4105]
[1727887548068,0.12502,146.63,146.57,16.38]
[1727887548467,3.4104,146.61,146.58,3.4108]
[1727887548779,3.4104,146.61,146.57,16.38]
[1727887548974,0.12502,146.63,146.59,3.4106]
[1727887549272,3.4101,146.62,146.59,3.4106]
[1727887549471,0.12502,146.63,146.61,3.4101]
[1727887549666,0.12502,146.63,146.58,4.054]
[1727887550275,3.53482,146.63,146.58,9.574]
[1727887550566,0.12502,146.63,146.62,3.41]
[1727887550772,5.52,146.68,146.61,16.38]
[1727887551266,21.9,146.68,146.59,16.38]
[1727887551472,21.9,146.68,146.58,4.054]
[1727887551671,16.38,146.66,146.58,12.9847]
[1727887551969,3.4096,146.64,146.58,9.574]
[1727887552180,16.38,146.66,146.59,3.4106]
[1727887552471,3.4095,146.64,146.59,3.4106]
[1727887552773,16.38,146.66,146.6,3.4102]
[1727887553275,3.4099,146.63,146.6,3.4102]
[1727887553475,16.38,146.66,146.6,3.4102]
[1727887555072,3.4098,146.63,146.6,3.4102]
[1727887555471,3.4098,146.63,146.61,3.4102]
[1727887555875,25.8027,146.68,146.58,9.574]
[1727887556177,3.4096,146.64,146.59,16.38]
[1727887556380,5.5,146.67,146.59,16.38]
[1727887556572,3.4095,146.64,146.59,16.38]
[1727887557072,21.88,146.68,146.59,16.38]
[1727887557275,16.38,146.7,146.61,16.38]
[1727887557472,16.38,146.62,146.57,0.12502]
[1727887557675,8.85572987,146.61,146.57,0.12502]
[1727887557871,19.7909,146.58,146.5,2.703]
[1727887558078,5.5,146.57,146.5,2.703]
[1727887558485,3.4123,146.52,146.5,1.332]
[1727887558874,3.4123,146.52,146.46,22.51580763]
[1727887559081,3.4123,146.52,146.46,20.371]
[1727887560286,3.4123,146.52,146.47,3.4133]
[1727887560774,5.5,146.54,146.48,16.38]
[1727887561677,16.38,146.57,146.48,16.38]
[1727887561881,2.5788,146.6,146.5,16.38]
[1727887561882,5.5,146.56,146.5,16.38]
[1727887562085,3.4115,146.56,146.52,3.4122]
[1727887562285,5.5,146.57,146.52,3.4122]
[1727887562679,3.4116,146.55,146.52,3.4122]
[1727887562874,18.9588,146.6,146.5,16.38]
[1727887563176,3.4111,146.57,146.54,3.4117]
[1727887563791,73.66,146.61,146.52,17.7869]
[1727887563792,90.04,146.61,146.52,17.7869]
[1727887563977,5.5,146.6,146.53,32.28312902]
[1727887564689,5.5,146.61,146.53,32.28312902]
[1727887564889,26.2,146.65,146.53,32.28312902]
[1727887565183,3.4101,146.62,146.55,26.2]
[1727887565380,5.62502,146.63,146.55,26.2]
[1727887565576,3.4104,146.61,146.57,3.4109]
[1727887565979,5.62502,146.63,146.57,3.4109]
[1727887566682,3.4103,146.61,146.56,3.4113]
[1727887566878,5.62502,146.63,146.53,6.08312902]
[1727887567387,3.411,146.58,146.55,3.4115]
[1727887567792,5.62502,146.63,146.53,2.6134]
[1727887568089,26.2,146.62,146.53,2.6134]
[1727887568291,5.62502,146.63,146.5,5.5]
[1727887568292,26.2,146.6,146.5,5.5]
[1727887568496,3.4122,146.53,146.5,5.5]
[1727887568784,5.5,146.59,146.49,3.4128]
[1727887568991,26.2,146.58,146.49,3.4128]
[1727887569692,3.4123,146.52,146.48,8.9132]
[1727887571391,3.4123,146.52,146.48,3.4132]
[1727887572386,3.4123,146.52,146.47,3.9757]
[1727887572588,3.4123,146.52,146.49,3.4128]
[1727887573489,5.5,146.54,146.51,3.53752]
[1727887573490,3.412,146.54,146.51,3.53752]
[1727887573684,5.52,146.55,146.51,0.12502]
[1727887574391,3.4122,146.53,146.51,0.12502]
[1727887574789,5.52,146.55,146.51,0.12502]
[1727887575298,3.4123,146.52,146.51,0.12502]
[1727887581798,26.2,146.58,146.51,0.12502]
[1727887581999,5.52,146.57,146.52,3.4121]
[1727887582590,1.3705,146.59,146.51,0.12502]
[1727887582796,5.52,146.58,146.53,3.4119]
[1727887582997,5.52,146.58,146.51,0.12502]
[1727887583301,3.4114,146.56,146.53,3.4118]
[1727887583809,3.4114,146.56,146.51,1.42152]
[1727887584302,5.52,146.58,146.53,3.4119]
[1727887584498,3.4116,146.55,146.53,3.4119]
[1727887585005,3.4123,146.52,146.51,0.12502]
[1727887591911,3.4122,146.53,146.51,0.12502]
[1727887592809,3.4119,146.54,146.51,0.12502]
[1727887593205,3.4119,146.54,146.51,3.53742]
[1727887593400,5.52,146.56,146.51,3.53742]
[1727887593702,5.52,146.56,146.51,0.12502]
[1727887594106,3.4123,146.52,146.51,0.12502]
[1727887595618,25.3223,146.52,146.51,0.12502]
[1727887596113,21.91,146.52,146.45,0.12502]
[1727887596306,3.4137,146.46,146.45,0.12502]
[1727887599219,3.4137,146.46,146.39,0.12502]
[1727887599220,26.23,146.46,146.39,0.12502]
[1727887599716,3.4151,146.4,146.39,0.12502]
[1727887600307,3.4151,146.4,146.28,1.46198]
[1727887600308,3.4154,146.39,146.28,1.46198]
[1727887600514,5.52,146.41,146.29,2.6538]
[1727887600515,26.23,146.37,146.29,2.6538]
[1727887600816,31.75,146.37,146.29,2.6538]
[1727887601119,3.4165,146.34,146.29,2.6538]
[1727887601417,3.4163,146.35,146.31,3.4171]
[1727887602214,26.23,146.37,146.29,2.6538]
[1727887602413,3.4165,146.34,146.3,3.4174]
[1727887603918,3.4165,146.34,146.29,2.6538]
[1727887604123,27.5877,146.4,146.29,2.6538]
[1727887604322,5.54,146.4,146.3,26.23]
[1727887604524,5.54,146.4,146.32,5.54]
[1727887604822,8.9552,146.4,146.36,3.4159]
[1727887605022,5.54,146.4,146.36,3.4159]
[1727887606219,3.4153,146.39,146.36,3.4159]
[1727887607025,5.54,146.4,146.35,3.4162]
[1727887607220,3.4156,146.38,146.35,3.4162]
[1727887609224,5.54,146.4,146.32,5.54]
[1727887609225,3.4162,146.36,146.32,5.54]
[1727887609432,3.4162,146.36,146.33,3.54152]
[1727887609725,31.77,146.4,146.33,0.12502]
[1727887609915,26.23,146.38,146.33,0.12502]
[1727887610116,3.4165,146.34,146.33,0.12502]
[1727887611227,3.4164,146.35,146.33,0.12502]
[1727887611423,5.54,146.36,146.33,0.12502]
[1727887611627,26.23,146.35,146.28,0.12518]
[1727887611823,26.23,146.33,146.28,0.12518]
[1727887612017,5.54,146.34,146.21,26.35502]
[1727887612018,26.23,146.31,146.21,0.12502]
[1727887612222,5.54,146.3,146.21,0.12502]
[1727887612427,3.4188,146.25,146.21,0.12502]
[1727887612635,5.54,146.3,146.21,0.12502]
[1727887612923,3.4187,146.25,146.21,0.12502]
[1727887613624,1.3096,146.32,146.21,26.35502]
[1727887613833,1.3096,146.32,146.21,31.89502]
[1727887614126,5.54,146.32,146.26,3.4181]
[1727887614334,5.54,146.32,146.21,31.89502]
[1727887614522,5.54,146.32,146.26,3.4182]
[1727887614722,5.54,146.32,146.21,31.89502]
[1727887615326,3.4178,146.29,146.26,3.4182]
[1727887615927,3.4175,146.3,146.26,3.4181]
[1727887616634,5.54,146.32,146.25,3.4184]
[1727887617128,5.54,146.32,146.21,31.89502]
[1727887617328,3.4181,146.28,146.24,3.4187]
[1727887617530,26.23,146.29,146.21,0.12502]
[1727887618725,26.23,146.29,146.26,3.4182]
[1727887618726,3.4177,146.29,146.26,3.4182]
[1727887619021,5.54,146.3,146.26,3.4182]
[1727887619428,3.4177,146.29,146.26,3.4182]
[1727887619625,5.54,146.3,146.25,3.4185]
[1727887620334,3.4179,146.28,146.25,3.4185]
[1727887620728,0.12502,146.33,146.25,5.54]
[1727887620928,3.4171,146.32,146.28,3.4179]
[1727887621136,3.4171,146.32,146.26,2.6573]
[1727887621833,26.35502,146.33,146.26,2.6573]
[1727887622331,26.23,146.31,146.25,8.9585]
[1727887622632,26.23,146.31,146.25,3.4185]
[1727887622825,26.23,146.31,146.24,4.7051]
[1727887623332,26.23,146.31,146.24,1.2865]
[1727887624129,3.4181,146.27,146.24,1.2865]
[1727887624635,3.4181,146.27,146.24,4.7052]
[1727887624831,3.4181,146.27,146.24,3.4187]
[1727887625037,26.23,146.29,146.22,1.2795]
[1727887625345,26.23,146.26,146.21,0.12502]
[1727887625638,3.4193,146.22,146.21,0.12502]
[1727887627447,3.4191,146.23,146.21,0.12502]
[1727887627742,31.77,146.24,146.21,0.12502]
[1727887628239,5.54,146.24,146.21,0.12502]
[1727887628640,3.4191,146.23,146.21,0.12502]
[1727887628829,5.54,146.24,146.21,0.12502]
[1727887629341,3.419,146.23,146.21,0.12502]
[1727887629946,3.4193,146.22,146.21,0.12502]
[1727887630840,31.77,146.26,146.21,0.12502]
[1727887631042,5.54,146.27,146.21,0.12502]
[1727887631640,3.4192,146.23,146.21,0.12502]
[1727887631942,5.54,146.27,146.21,0.12502]
[1727887632543,3.4192,146.23,146.21,0.12502]
[1727887632944,3.4185,146.26,146.22,3.4193]
[1727887633145,5.54,146.27,146.22,3.4193]
[1727887633644,3.4188,146.25,146.22,3.4193]
[1727887634041,3.419,146.24,146.21,3.54442]
[1727887634241,5.54,146.27,146.21,0.12502]
[1727887634539,3.4189,146.24,146.21,3.54432]
[1727887635135,3.4191,146.23,146.21,0.12502]
[1727887635541,26.23,146.26,146.21,0.12502]
[1727887635840,3.4193,146.22,146.21,0.12502]
[1727887636343,3.4193,146.22,146.15,64.85968993]
[1727887636344,5.54,146.23,146.15,64.85968993]
[1727887636549,26.23,146.21,146.15,3.54572]
[1727887637050,5.54,146.2,146.15,3.54572]
[1727887637246,3.4205,146.17,146.15,0.12502]